[Event "Titled Tuesday Blitz June 27 Late 2023"]
[White "Vlassov, Nikolai"]
[Black "MAHanif"]
[WhiteFideId "4103360"]
[WhiteElo "2638"]
[BlackElo "2323"]
[Result "1-0"]
[Round "1"]
[TimeControl "180+2"]
[Date "2023.06.27"]
[WhiteClock "0:00:14"]
[BlackClock "0:00:00"]
[Board "127"]

1. e4 {[%clk 0:02:55]}  e5 {[%clk 0:02:49]} 2. Bc4 {[%clk 0:02:54]}  Bc5 {[%clk 0:02:47]} 3. f4 {[%clk 0:02:52]}  Qe7 {[%clk 0:02:43]} 4. Nc3 {[%clk 0:02:49]}  Nf6 {[%clk 0:02:39]} 5. Nf3 {[%clk 0:02:47]}  Nc6 {[%clk 0:02:36]} 6. d3 {[%clk 0:02:35]}  d6 {[%clk 0:02:34]} 7. f5 {[%clk 0:02:29]}  Na5 {[%clk 0:02:31]} 8. Bg5 {[%clk 0:02:28]}  c6 {[%clk 0:02:25]} 9. Qe2 {[%clk 0:02:18]}  b5 {[%clk 0:02:22]} 10. Bb3 {[%clk 0:02:18]}  Bd7 {[%clk 0:02:13]} 11. g4 {[%clk 0:02:10]}  h6 {[%clk 0:02:02]} 12. Bh4 {[%clk 0:01:54]}  Qd8 {[%clk 0:01:54]} 13. g5 {[%clk 0:01:50]}  hxg5 {[%clk 0:01:52]} 14. Bxg5 {[%clk 0:01:50]}  Qb6 {[%clk 0:01:48]} 15. Bxf6 {[%clk 0:01:48]}  gxf6 {[%clk 0:01:47]} 16. h4 {[%clk 0:01:48]}  Ke7 {[%clk 0:01:46]} 17. h5 {[%clk 0:01:47]}  Rag8 {[%clk 0:01:45]} 18. O-O-O {[%clk 0:01:35]}  Nxb3+ {[%clk 0:01:44]} 19. cxb3 {[%clk 0:01:28]}  Bd4 {[%clk 0:01:41]} 20. Kb1 {[%clk 0:01:13]}  a5 {[%clk 0:01:39]} 21. h6 {[%clk 0:01:07]}  a4 {[%clk 0:01:37]} 22. b4 {[%clk 0:01:05]}  a3 {[%clk 0:01:33]} 23. Qc2 {[%clk 0:00:49]}  axb2 {[%clk 0:01:32]} 24. Nxd4 {[%clk 0:00:49]}  Qxd4 {[%clk 0:01:29]} 25. Qxb2 {[%clk 0:00:43]}  Rg3 {[%clk 0:01:24]} 26. Ne2 {[%clk 0:00:37]}  Qxb2+ {[%clk 0:01:21]} 27. Kxb2 {[%clk 0:00:37]}  Rg2 {[%clk 0:01:20]} 28. Rd2 {[%clk 0:00:38]}  d5 {[%clk 0:01:11]} 29. Kc3 {[%clk 0:00:37]}  Kd6 {[%clk 0:01:06]} 30. Nc1 {[%clk 0:00:36]}  Rgg8 {[%clk 0:00:55]} 31. h7 {[%clk 0:00:35]}  Rg7 {[%clk 0:00:50]} 32. Rdh2 {[%clk 0:00:35]}  c5 {[%clk 0:00:44]} 33. bxc5+ {[%clk 0:00:35]}  Kxc5 {[%clk 0:00:44]} 34. Nb3+ {[%clk 0:00:36]}  Kb6 {[%clk 0:00:40]} 35. Kb4 {[%clk 0:00:33]}  dxe4 {[%clk 0:00:30]} 36. dxe4 {[%clk 0:00:32]}  Rg4 {[%clk 0:00:29]} 37. Rh4 {[%clk 0:00:33]}  Rg2 {[%clk 0:00:23]} 38. Rh6 {[%clk 0:00:31]}  Rg4 {[%clk 0:00:19]} 39. Rxf6+ {[%clk 0:00:31]}  Bc6 {[%clk 0:00:18]} 40. Nc5 {[%clk 0:00:29]}  Kc7 {[%clk 0:00:17]} 41. Rxf7+ {[%clk 0:00:28]}  Kb6 {[%clk 0:00:17]} 42. Rf6 {[%clk 0:00:28]}  Kc7 {[%clk 0:00:17]} 43. Rhh6 {[%clk 0:00:27]}  Bxe4 {[%clk 0:00:16]} 44. Kxb5 {[%clk 0:00:27]}  Rb8+ {[%clk 0:00:13]} 45. Rb6 {[%clk 0:00:27]}  Rxb6+ {[%clk 0:00:13]} 46. Rxb6 {[%clk 0:00:26]}  Rh4 {[%clk 0:00:12]} 47. Ra6 {[%clk 0:00:25]}  Bxf5 {[%clk 0:00:11]} 48. a4 {[%clk 0:00:19]}  Rxh7 {[%clk 0:00:10]} 49. Ra7+ {[%clk 0:00:18]}  Kd6 {[%clk 0:00:10]} 50. Rxh7 {[%clk 0:00:17]}  Bxh7 {[%clk 0:00:10]} 51. a5 {[%clk 0:00:17]}  Bf5 {[%clk 0:00:09]} 52. a6 {[%clk 0:00:17]}  Bg4 {[%clk 0:00:09]} 53. Kb6 {[%clk 0:00:14]}  Bf3 {[%clk 0:00:08]} 54. Nb7+ {[%clk 0:00:14]}  Kd7 {[%clk 0:00:00]} 55. a7 {[%clk 0:00:14]} 1-0


[Site "https://www.chess.com"]

[Event "Titled Tuesday Blitz June 27 Late 2023"]
[White "Bernado Lopez, Roger"]
[Black "Moral Garcia, Serafin"]
[WhiteFideId "24585009"]
[BlackFideId "2201925"]
[WhiteElo "2322"]
[BlackElo "2635"]
[Result "1-0"]
[Round "1"]
[TimeControl "180+2"]
[Date "2023.06.27"]
[WhiteClock "0:00:12"]
[BlackClock "0:00:09"]
[Board "128"]

1. e4 {[%clk 0:03:00]}  c5 {[%clk 0:02:54]} 2. Nf3 {[%clk 0:03:00]}  e6 {[%clk 0:02:54]} 3. d4 {[%clk 0:03:00]}  cxd4 {[%clk 0:02:54]} 4. Nxd4 {[%clk 0:03:01]}  Nc6 {[%clk 0:02:55]} 5. Nc3 {[%clk 0:03:01]}  Qc7 {[%clk 0:02:54]} 6. Be3 {[%clk 0:02:59]}  a6 {[%clk 0:02:54]} 7. g4 {[%clk 0:02:59]}  b5 {[%clk 0:02:52]} 8. Nxc6 {[%clk 0:02:56]}  Qxc6 {[%clk 0:02:51]} 9. Qd2 {[%clk 0:02:55]}  Bb7 {[%clk 0:02:49]} 10. O-O-O {[%clk 0:02:49]}  h5 {[%clk 0:01:48]} 11. g5 {[%clk 0:02:45]}  Ne7 {[%clk 0:01:47]} 12. Bg2 {[%clk 0:02:35]}  Ng6 {[%clk 0:01:39]} 13. f4 {[%clk 0:02:33]}  Nh4 {[%clk 0:01:33]} 14. Bf1 {[%clk 0:02:26]}  Rc8 {[%clk 0:01:25]} 15. Be2 {[%clk 0:02:14]}  b4 {[%clk 0:01:07]} 16. Nd5 {[%clk 0:01:35]}  exd5 {[%clk 0:01:01]} 17. exd5 {[%clk 0:01:35]}  Qd6 {[%clk 0:00:59]} 18. Rhe1 {[%clk 0:01:33]}  Be7 {[%clk 0:00:56]} 19. Bd4 {[%clk 0:01:32]}  Nf5 {[%clk 0:00:55]} 20. Be5 {[%clk 0:01:32]}  Qc5 {[%clk 0:00:45]} 21. d6 {[%clk 0:01:30]}  Ne3 {[%clk 0:00:29]} 22. Bd3 {[%clk 0:01:25]}  Nxd1 {[%clk 0:00:27]} 23. Kxd1 {[%clk 0:01:11]}  Bf3+ {[%clk 0:00:23]} 24. Kc1 {[%clk 0:01:12]}  O-O {[%clk 0:00:19]} 25. dxe7 {[%clk 0:01:12]}  Rfe8 {[%clk 0:00:19]} 26. Bd4 {[%clk 0:00:53]}  Qd5 {[%clk 0:00:19]} 27. Kb1 {[%clk 0:00:51]}  Bg4 {[%clk 0:00:17]} 28. Qe3 {[%clk 0:00:47]}  Be6 {[%clk 0:00:17]} 29. b3 {[%clk 0:00:47]}  Bf5 {[%clk 0:00:16]} 30. Bc4 {[%clk 0:00:44]}  Qg2 {[%clk 0:00:16]} 31. Re2 {[%clk 0:00:41]}  Qh1+ {[%clk 0:00:14]} 32. Kb2 {[%clk 0:00:40]}  d5 {[%clk 0:00:15]} 33. Bxa6 {[%clk 0:00:35]}  Qe4 {[%clk 0:00:13]} 34. Bxc8 {[%clk 0:00:26]}  Rxc8 {[%clk 0:00:12]} 35. Qxe4 {[%clk 0:00:22]}  Bxe4 {[%clk 0:00:12]} 36. Bc5 {[%clk 0:00:19]}  f6 {[%clk 0:00:12]} 37. Bxb4 {[%clk 0:00:18]}  Kf7 {[%clk 0:00:12]} 38. a4 {[%clk 0:00:18]}  fxg5 {[%clk 0:00:13]} 39. fxg5 {[%clk 0:00:18]}  Kg6 {[%clk 0:00:12]} 40. a5 {[%clk 0:00:17]}  Kxg5 {[%clk 0:00:13]} 41. a6 {[%clk 0:00:16]}  Kf4 {[%clk 0:00:11]} 42. a7 {[%clk 0:00:16]}  d4 {[%clk 0:00:11]} 43. Bd6+ {[%clk 0:00:15]}  Kf3 {[%clk 0:00:11]} 44. Rxe4 {[%clk 0:00:12]}  Kxe4 {[%clk 0:00:09]} 45. Bb8 {[%clk 0:00:12]} 1-0


[Site "https://www.chess.com"]

[Event "Titled Tuesday Blitz June 27 Late 2023"]
[White "Adewumi, Tanitoluwa"]
[Black "Gerbelli Neto, Eduardo"]
[WhiteFideId "30966396"]
[BlackFideId "2103281"]
[WhiteElo "2633"]
[BlackElo "2321"]
[Result "1-0"]
[Round "1"]
[TimeControl "180+2"]
[Date "2023.06.27"]
[WhiteClock "0:00:24"]
[BlackClock "0:01:14"]
[Board "129"]

1. e4 {[%clk 0:02:46]}  e5 {[%clk 0:02:56]} 2. Nf3 {[%clk 0:02:45]}  Nc6 {[%clk 0:02:55]} 3. Nc3 {[%clk 0:02:45]}  Nf6 {[%clk 0:02:54]} 4. Bb5 {[%clk 0:02:40]}  Bb4 {[%clk 0:02:51]} 5. O-O {[%clk 0:02:29]}  O-O {[%clk 0:02:40]} 6. Bxc6 {[%clk 0:02:24]}  dxc6 {[%clk 0:02:40]} 7. d3 {[%clk 0:02:21]}  h6 {[%clk 0:02:32]} 8. Nxe5 {[%clk 0:02:14]}  Re8 {[%clk 0:02:32]} 9. Nf3 {[%clk 0:02:05]}  Bg4 {[%clk 0:02:32]} 10. h3 {[%clk 0:02:01]}  Bh5 {[%clk 0:02:32]} 11. Bd2 {[%clk 0:01:43]}  Nd7 {[%clk 0:02:30]} 12. g4 {[%clk 0:01:39]}  Bg6 {[%clk 0:02:30]} 13. Ne2 {[%clk 0:01:37]}  Bd6 {[%clk 0:02:29]} 14. Bf4 {[%clk 0:01:25]}  h5 {[%clk 0:02:14]} 15. Bxd6 {[%clk 0:01:22]}  cxd6 {[%clk 0:02:15]} 16. Kg2 {[%clk 0:01:12]}  hxg4 {[%clk 0:02:13]} 17. hxg4 {[%clk 0:01:13]}  Nf6 {[%clk 0:02:13]} 18. g5 {[%clk 0:01:04]}  Nh5 {[%clk 0:02:04]} 19. Rh1 {[%clk 0:00:49]}  Qd7 {[%clk 0:02:04]} 20. Rh4 {[%clk 0:00:40]}  f5 {[%clk 0:01:45]} 21. gxf6 {[%clk 0:00:31]}  gxf6 {[%clk 0:01:43]} 22. Qh1 {[%clk 0:00:29]}  Qf7 {[%clk 0:01:33]} 23. Ng3 {[%clk 0:00:25]}  Nxg3 {[%clk 0:01:15]} 24. Rh8+ {[%clk 0:00:24]}  Kg7 {[%clk 0:01:14]} 25. Qh6# {[%clk 0:00:24]} 1-0


[Site "https://www.chess.com"]

[Event "Titled Tuesday Blitz June 27 Late 2023"]
[White "Jarmula, Lukasz"]
[Black "Bullen, Alex"]
[WhiteFideId "1160664"]
[BlackFideId "1801627"]
[WhiteElo "2619"]
[BlackElo "2303"]
[Result "1-0"]
[Round "1"]
[TimeControl "180+2"]
[Date "2023.06.27"]
[WhiteClock "0:02:12"]
[BlackClock "0:01:46"]
[Board "135"]

1. b3 {[%clk 0:03:00]}  d5 {[%clk 0:02:59]} 2. Bb2 {[%clk 0:03:00]}  Bg4 {[%clk 0:02:59]} 3. g3 {[%clk 0:02:55]}  c6 {[%clk 0:02:59]} 4. Nf3 {[%clk 0:02:54]}  Nd7 {[%clk 0:02:57]} 5. Bg2 {[%clk 0:02:53]}  e6 {[%clk 0:02:55]} 6. d3 {[%clk 0:02:51]}  Bd6 {[%clk 0:02:55]} 7. Bxg7 {[%clk 0:02:50]}  Bxf3 {[%clk 0:02:49]} 8. Bxf3 {[%clk 0:02:43]}  Be5 {[%clk 0:02:49]} 9. Bxh8 {[%clk 0:02:42]}  Bxh8 {[%clk 0:02:49]} 10. c3 {[%clk 0:02:42]}  b5 {[%clk 0:02:44]} 11. d4 {[%clk 0:02:38]}  Ne7 {[%clk 0:02:40]} 12. e3 {[%clk 0:02:36]}  Nf5 {[%clk 0:02:40]} 13. O-O {[%clk 0:02:34]}  Qg5 {[%clk 0:02:32]} 14. Nd2 {[%clk 0:02:31]}  O-O-O {[%clk 0:02:31]} 15. a4 {[%clk 0:02:30]}  bxa4 {[%clk 0:02:24]} 16. Rxa4 {[%clk 0:02:29]}  e5 {[%clk 0:02:16]} 17. Rxa7 {[%clk 0:02:28]}  e4 {[%clk 0:02:13]} 18. Bg2 {[%clk 0:02:27]}  Nh4 {[%clk 0:02:10]} 19. gxh4 {[%clk 0:02:26]}  Qg6 {[%clk 0:02:07]} 20. Qa1 {[%clk 0:02:18]}  Rg8 {[%clk 0:01:59]} 21. Qa6+ {[%clk 0:02:17]}  Kd8 {[%clk 0:01:53]} 22. Ra8+ {[%clk 0:02:18]}  Ke7 {[%clk 0:01:53]} 23. Rxg8 {[%clk 0:02:17]}  Qxg8 {[%clk 0:01:53]} 24. Qxc6 {[%clk 0:02:16]}  Nf6 {[%clk 0:01:53]} 25. Ra1 {[%clk 0:02:14]}  Ng4 {[%clk 0:01:49]} 26. Ra7+ {[%clk 0:02:12]}  Kf8 {[%clk 0:01:46]} 27. Ra8+ {[%clk 0:02:12]} 1-0


[Site "https://www.chess.com"]

[Event "Titled Tuesday Blitz June 27 Late 2023"]
[White "Ozen, Batuhan"]
[Black "Stark, Lars"]
[WhiteFideId "6345123"]
[BlackFideId "4676386"]
[WhiteElo "2301"]
[BlackElo "2618"]
[Result "0-1"]
[Round "1"]
[TimeControl "180+2"]
[Date "2023.06.27"]
[WhiteClock "0:00:15"]
[BlackClock "0:00:25"]
[Board "136"]

1. c4 {[%clk 0:02:58]}  Nf6 {[%clk 0:02:58]} 2. Nf3 {[%clk 0:02:58]}  e6 {[%clk 0:02:58]} 3. g3 {[%clk 0:02:54]}  a6 {[%clk 0:02:58]} 4. Bg2 {[%clk 0:02:54]}  b5 {[%clk 0:02:58]} 5. b3 {[%clk 0:02:47]}  Bb7 {[%clk 0:02:58]} 6. O-O {[%clk 0:02:48]}  c5 {[%clk 0:02:58]} 7. d4 {[%clk 0:02:43]}  cxd4 {[%clk 0:02:58]} 8. cxb5 {[%clk 0:02:40]}  axb5 {[%clk 0:02:57]} 9. Nxd4 {[%clk 0:02:36]}  Bxg2 {[%clk 0:02:56]} 10. Kxg2 {[%clk 0:02:37]}  Qb6 {[%clk 0:02:57]} 11. Bb2 {[%clk 0:02:31]}  Be7 {[%clk 0:02:56]} 12. Qd3 {[%clk 0:02:27]}  Qb7+ {[%clk 0:02:54]} 13. f3 {[%clk 0:02:25]}  b4 {[%clk 0:02:53]} 14. e4 {[%clk 0:02:22]}  O-O {[%clk 0:02:49]} 15. Nd2 {[%clk 0:02:22]}  Rc8 {[%clk 0:02:44]} 16. Rfc1 {[%clk 0:02:15]}  Rxc1 {[%clk 0:02:33]} 17. Bxc1 {[%clk 0:02:16]}  d5 {[%clk 0:02:32]} 18. e5 {[%clk 0:02:11]}  Nfd7 {[%clk 0:02:31]} 19. f4 {[%clk 0:02:02]}  Nc5 {[%clk 0:02:28]} 20. Qe2 {[%clk 0:01:57]}  Nc6 {[%clk 0:02:26]} 21. N2f3 {[%clk 0:01:55]}  Ne4 {[%clk 0:02:23]} 22. Bb2 {[%clk 0:01:50]}  h6 {[%clk 0:02:12]} 23. f5 {[%clk 0:01:49]}  Nxd4 {[%clk 0:02:07]} 24. Nxd4 {[%clk 0:01:45]}  exf5 {[%clk 0:01:54]} 25. Nxf5 {[%clk 0:01:46]}  Bf8 {[%clk 0:01:54]} 26. Bd4 {[%clk 0:01:33]}  Qc6 {[%clk 0:01:48]} 27. Ne3 {[%clk 0:01:22]}  Be7 {[%clk 0:01:42]} 28. Qf3 {[%clk 0:01:18]}  Bg5 {[%clk 0:01:29]} 29. h4 {[%clk 0:00:48]}  Bxe3 {[%clk 0:01:28]} 30. Qxe3 {[%clk 0:00:48]}  Qc2+ {[%clk 0:01:19]} 31. Kh3 {[%clk 0:00:48]}  Rxa2 {[%clk 0:01:16]} 32. Rxa2 {[%clk 0:00:47]}  Qxa2 {[%clk 0:01:17]} 33. Qd3 {[%clk 0:00:42]}  Qa5 {[%clk 0:00:57]} 34. Be3 {[%clk 0:00:38]}  h5 {[%clk 0:00:48]} 35. Qd1 {[%clk 0:00:35]}  g6 {[%clk 0:00:44]} 36. Bd4 {[%clk 0:00:34]}  Qd8 {[%clk 0:00:43]} 37. Qf3 {[%clk 0:00:26]}  Qd7+ {[%clk 0:00:42]} 38. Kg2 {[%clk 0:00:25]}  Qe6 {[%clk 0:00:32]} 39. Qf4 {[%clk 0:00:24]}  Kh7 {[%clk 0:00:29]} 40. Qf3 {[%clk 0:00:23]}  Qf5 {[%clk 0:00:27]} 41. Qxf5 {[%clk 0:00:20]}  gxf5 {[%clk 0:00:27]} 42. Kf3 {[%clk 0:00:21]}  Kg6 {[%clk 0:00:25]} 43. Kf4 {[%clk 0:00:21]}  Nd2 {[%clk 0:00:25]} 44. Bc5 {[%clk 0:00:20]}  Nxb3 {[%clk 0:00:25]} 45. Bxb4 {[%clk 0:00:21]}  Nd4 {[%clk 0:00:25]} 46. Bd2 {[%clk 0:00:21]}  Ne6+ {[%clk 0:00:24]} 47. Kf3 {[%clk 0:00:21]}  f6 {[%clk 0:00:21]} 48. Bf4 {[%clk 0:00:19]}  Kf7 {[%clk 0:00:20]} 49. exf6 {[%clk 0:00:17]}  Kxf6 {[%clk 0:00:21]} 50. Bd6 {[%clk 0:00:17]}  Kf7 {[%clk 0:00:20]} 51. Ke3 {[%clk 0:00:17]}  Ke8 {[%clk 0:00:21]} 52. Be5 {[%clk 0:00:18]}  Kd7 {[%clk 0:00:22]} 53. Kd3 {[%clk 0:00:19]}  Kc6 {[%clk 0:00:23]} 54. Kc3 {[%clk 0:00:18]}  Kb5 {[%clk 0:00:24]} 55. Kd3 {[%clk 0:00:19]}  Kc5 {[%clk 0:00:24]} 56. Bf6 {[%clk 0:00:19]}  Kd6 {[%clk 0:00:24]} 57. Bc3 {[%clk 0:00:19]}  Kc5 {[%clk 0:00:23]} 58. Bb2 {[%clk 0:00:19]}  d4 {[%clk 0:00:24]} 59. Ba3+ {[%clk 0:00:19]}  Kd5 {[%clk 0:00:24]} 60. Bb2 {[%clk 0:00:20]}  Nc5+ {[%clk 0:00:24]} 61. Kd2 {[%clk 0:00:19]}  Ke4 {[%clk 0:00:24]} 62. Ba3 {[%clk 0:00:18]}  Nd3 {[%clk 0:00:24]} 63. Bd6 {[%clk 0:00:18]}  Nf2 {[%clk 0:00:24]} 64. Bf4 {[%clk 0:00:18]}  Ng4 {[%clk 0:00:24]} 65. Bg5 {[%clk 0:00:18]}  Ne3 {[%clk 0:00:24]} 66. Bf4 {[%clk 0:00:18]}  Nd5 {[%clk 0:00:24]} 67. Bg5 {[%clk 0:00:18]}  Nb6 {[%clk 0:00:24]} 68. Ke2 {[%clk 0:00:18]}  Nc4 {[%clk 0:00:24]} 69. Kd1 {[%clk 0:00:18]}  d3 {[%clk 0:00:25]} 70. Bf4 {[%clk 0:00:18]}  Kf3 {[%clk 0:00:25]} 71. Kc1 {[%clk 0:00:17]}  Ke2 {[%clk 0:00:25]} 72. Bg5 {[%clk 0:00:17]}  d2+ {[%clk 0:00:25]} 73. Bxd2 {[%clk 0:00:15]}  Nxd2 {[%clk 0:00:25]} 0-1


[Site "https://www.chess.com"]

[Event "Titled Tuesday Blitz June 27 Late 2023"]
[White "Andrej2004"]
[Black "Ward, Ieuan C"]
[BlackFideId "406627"]
[WhiteElo "2612"]
[BlackElo "2288"]
[Result "1-0"]
[Round "1"]
[TimeControl "180+2"]
[Date "2023.06.27"]
[WhiteClock "0:00:44"]
[BlackClock "0:00:02"]
[Board "139"]

1. g3 {[%clk 0:03:00]}  e6 {[%clk 0:02:59]} 2. Bg2 {[%clk 0:03:00]}  d5 {[%clk 0:03:00]} 3. b3 {[%clk 0:03:00]}  Nf6 {[%clk 0:03:00]} 4. Bb2 {[%clk 0:03:01]}  Be7 {[%clk 0:03:01]} 5. d3 {[%clk 0:03:01]}  O-O {[%clk 0:03:01]} 6. Nf3 {[%clk 0:03:02]}  c5 {[%clk 0:03:02]} 7. O-O {[%clk 0:03:02]}  Nc6 {[%clk 0:03:02]} 8. Nbd2 {[%clk 0:03:02]}  b6 {[%clk 0:03:02]} 9. e4 {[%clk 0:03:02]}  Bb7 {[%clk 0:03:01]} 10. Re1 {[%clk 0:03:01]}  Qc7 {[%clk 0:03:00]} 11. exd5 {[%clk 0:03:01]}  exd5 {[%clk 0:02:56]} 12. Ne5 {[%clk 0:03:00]}  Rfe8 {[%clk 0:02:50]} 13. Nxc6 {[%clk 0:03:00]}  Bxc6 {[%clk 0:02:50]} 14. Qf3 {[%clk 0:03:00]}  Rac8 {[%clk 0:02:46]} 15. Be5 {[%clk 0:02:49]}  Qd7 {[%clk 0:02:39]} 16. d4 {[%clk 0:02:46]}  cxd4 {[%clk 0:02:24]} 17. Bxd4 {[%clk 0:02:43]}  Ne4 {[%clk 0:02:22]} 18. Nxe4 {[%clk 0:02:41]}  dxe4 {[%clk 0:02:23]} 19. Qe3 {[%clk 0:02:41]}  Bb4 {[%clk 0:02:13]} 20. c3 {[%clk 0:02:40]}  Bf8 {[%clk 0:02:09]} 21. Rad1 {[%clk 0:02:40]}  Qf5 {[%clk 0:02:08]} 22. h4 {[%clk 0:02:30]}  Rc7 {[%clk 0:01:38]} 23. Kh2 {[%clk 0:02:17]}  h6 {[%clk 0:01:34]} 24. Bh3 {[%clk 0:02:17]}  Qa5 {[%clk 0:01:32]} 25. Qf4 {[%clk 0:02:15]}  Rce7 {[%clk 0:01:25]} 26. Re2 {[%clk 0:02:13]}  Bb5 {[%clk 0:01:22]} 27. c4 {[%clk 0:02:11]}  Bc6 {[%clk 0:01:20]} 28. a4 {[%clk 0:01:55]}  Qb4 {[%clk 0:01:18]} 29. Re3 {[%clk 0:01:54]}  Qa5 {[%clk 0:01:04]} 30. Rde1 {[%clk 0:01:53]}  Rd8 {[%clk 0:01:00]} 31. Bc3 {[%clk 0:01:51]}  Qc5 {[%clk 0:00:54]} 32. Bf5 {[%clk 0:01:47]}  Rde8 {[%clk 0:00:47]} 33. Rd1 {[%clk 0:01:36]}  g6 {[%clk 0:00:44]} 34. Bh3 {[%clk 0:01:36]}  Bg7 {[%clk 0:00:39]} 35. Bxg7 {[%clk 0:01:33]}  Kxg7 {[%clk 0:00:40]} 36. Rd6 {[%clk 0:01:34]}  Bb7 {[%clk 0:00:36]} 37. Qf6+ {[%clk 0:01:11]}  Kg8 {[%clk 0:00:24]} 38. Qf4 {[%clk 0:01:08]}  h5 {[%clk 0:00:18]} 39. Qf6 {[%clk 0:01:04]}  Qe5 {[%clk 0:00:17]} 40. Qxe5 {[%clk 0:01:03]}  Rxe5 {[%clk 0:00:18]} 41. Rd7 {[%clk 0:01:04]}  R5e7 {[%clk 0:00:18]} 42. Rd6 {[%clk 0:01:03]}  Bc8 {[%clk 0:00:17]} 43. Bg2 {[%clk 0:01:03]}  Bf5 {[%clk 0:00:17]} 44. Kg1 {[%clk 0:01:00]}  Re6 {[%clk 0:00:18]} 45. Rd7 {[%clk 0:00:59]}  R6e7 {[%clk 0:00:18]} 46. Rd4 {[%clk 0:00:59]}  Kg7 {[%clk 0:00:17]} 47. Kf1 {[%clk 0:00:58]}  Re5 {[%clk 0:00:15]} 48. Ke2 {[%clk 0:00:58]}  Kf6 {[%clk 0:00:15]} 49. Kd2 {[%clk 0:00:58]}  R8e7 {[%clk 0:00:13]} 50. Kc3 {[%clk 0:00:58]}  Re8 {[%clk 0:00:13]} 51. Rd6+ {[%clk 0:00:58]}  R5e6 {[%clk 0:00:13]} 52. Rd4 {[%clk 0:00:59]}  Re5 {[%clk 0:00:13]} 53. b4 {[%clk 0:00:59]}  R5e7 {[%clk 0:00:13]} 54. Bf1 {[%clk 0:00:58]}  Re5 {[%clk 0:00:13]} 55. Rd6+ {[%clk 0:00:59]}  R5e6 {[%clk 0:00:13]} 56. Rd7 {[%clk 0:00:58]}  R6e7 {[%clk 0:00:14]} 57. Rd4 {[%clk 0:00:59]}  Re5 {[%clk 0:00:14]} 58. Be2 {[%clk 0:00:56]}  Kg7 {[%clk 0:00:13]} 59. b5 {[%clk 0:00:54]}  Kf6 {[%clk 0:00:13]} 60. Kb4 {[%clk 0:00:55]}  Rc8 {[%clk 0:00:11]} 61. a5 {[%clk 0:00:55]}  Rec5 {[%clk 0:00:11]} 62. axb6 {[%clk 0:00:53]}  axb6 {[%clk 0:00:11]} 63. Rd6+ {[%clk 0:00:53]}  Kg7 {[%clk 0:00:08]} 64. Rxb6 {[%clk 0:00:54]}  R5c7 {[%clk 0:00:06]} 65. Rd6 {[%clk 0:00:49]}  Re8 {[%clk 0:00:03]} 66. c5 {[%clk 0:00:48]}  Rce7 {[%clk 0:00:02]} 67. c6 {[%clk 0:00:48]}  Re5 {[%clk 0:00:01]} 68. b6 {[%clk 0:00:47]}  Ra8 {[%clk 0:00:01]} 69. Bb5 {[%clk 0:00:44]}  Rb8 {[%clk 0:00:01]} 70. b7 {[%clk 0:00:45]}  Be6 {[%clk 0:00:01]} 71. Rxe6 {[%clk 0:00:43]}  Rxe6 {[%clk 0:00:01]} 72. c7 {[%clk 0:00:43]}  Rxb7 {[%clk 0:00:01]} 73. c8=Q {[%clk 0:00:44]}  Reb6 {[%clk 0:00:02]} 74. Qc3+ {[%clk 0:00:43]}  Kg8 {[%clk 0:00:02]} 75. Qc5 {[%clk 0:00:43]}  Rxb5+ {[%clk 0:00:02]} 76. Qxb5 {[%clk 0:00:43]}  Rxb5+ {[%clk 0:00:02]} 77. Kxb5 {[%clk 0:00:44]} 1-0


[Site "https://www.chess.com"]

[Event "Titled Tuesday Blitz June 27 Late 2023"]
[White "Vaglio Munoz, Jaime"]
[Black "De La Villa Garcia, Jesus Maria"]
[WhiteFideId "6500145"]
[BlackFideId "2200040"]
[WhiteElo "2282"]
[BlackElo "2612"]
[Result "0-1"]
[Round "1"]
[TimeControl "180+2"]
[Date "2023.06.27"]
[WhiteClock "0:00:08"]
[BlackClock "0:01:27"]
[Board "140"]

1. Nf3 {[%clk 0:02:59]}  d5 {[%clk 0:02:57]} 2. c4 {[%clk 0:02:58]}  d4 {[%clk 0:02:57]} 3. e3 {[%clk 0:02:58]}  Nc6 {[%clk 0:02:57]} 4. a3 {[%clk 0:02:55]}  e5 {[%clk 0:02:54]} 5. b4 {[%clk 0:02:51]}  e4 {[%clk 0:02:53]} 6. Nxd4 {[%clk 0:02:50]}  Nxd4 {[%clk 0:02:54]} 7. exd4 {[%clk 0:02:49]}  Qxd4 {[%clk 0:02:54]} 8. Nc3 {[%clk 0:02:48]}  Nf6 {[%clk 0:02:53]} 9. h3 {[%clk 0:02:42]}  a5 {[%clk 0:02:47]} 10. Rb1 {[%clk 0:02:36]}  axb4 {[%clk 0:02:42]} 11. axb4 {[%clk 0:02:29]}  Be6 {[%clk 0:02:42]} 12. Nb5 {[%clk 0:02:25]}  Qd7 {[%clk 0:02:41]} 13. c5 {[%clk 0:02:22]}  c6 {[%clk 0:02:36]} 14. Nc3 {[%clk 0:02:19]}  Be7 {[%clk 0:02:33]} 15. Qe2 {[%clk 0:02:11]}  O-O {[%clk 0:02:30]} 16. g3 {[%clk 0:02:10]}  Bf5 {[%clk 0:02:28]} 17. Bg2 {[%clk 0:02:09]}  e3 {[%clk 0:02:28]} 18. Rb2 {[%clk 0:01:50]}  exf2+ {[%clk 0:02:16]} 19. Qxf2 {[%clk 0:01:49]}  Rfe8 {[%clk 0:02:13]} 20. O-O {[%clk 0:01:48]}  Bxh3 {[%clk 0:02:13]} 21. d4 {[%clk 0:01:43]}  Bxg2 {[%clk 0:02:11]} 22. Kxg2 {[%clk 0:01:44]}  Bf8 {[%clk 0:02:04]} 23. Bf4 {[%clk 0:01:34]}  Rad8 {[%clk 0:01:59]} 24. Rd2 {[%clk 0:01:32]}  Nd5 {[%clk 0:01:57]} 25. Nxd5 {[%clk 0:01:21]}  Qxd5+ {[%clk 0:01:58]} 26. Qf3 {[%clk 0:01:20]}  g6 {[%clk 0:01:57]} 27. Qxd5 {[%clk 0:01:15]}  Rxd5 {[%clk 0:01:58]} 28. Kf3 {[%clk 0:01:12]}  Bg7 {[%clk 0:01:57]} 29. Rfd1 {[%clk 0:01:11]}  Red8 {[%clk 0:01:57]} 30. Be3 {[%clk 0:01:11]}  f5 {[%clk 0:01:56]} 31. Bg5 {[%clk 0:00:37]}  R8d7 {[%clk 0:01:50]} 32. Ke3 {[%clk 0:00:35]}  h6 {[%clk 0:01:44]} 33. Bf4 {[%clk 0:00:35]}  g5 {[%clk 0:01:44]} 34. Bd6 {[%clk 0:00:35]}  Bf8 {[%clk 0:01:45]} 35. Bxf8 {[%clk 0:00:29]}  Kxf8 {[%clk 0:01:46]} 36. Rh1 {[%clk 0:00:28]}  Kg7 {[%clk 0:01:46]} 37. Rf1 {[%clk 0:00:27]}  Kg6 {[%clk 0:01:46]} 38. Rb1 {[%clk 0:00:24]}  Re7+ {[%clk 0:01:40]} 39. Kf3 {[%clk 0:00:24]}  Re4 {[%clk 0:01:41]} 40. b5 {[%clk 0:00:24]}  Rexd4 {[%clk 0:01:38]} 41. Rxd4 {[%clk 0:00:23]}  Rxd4 {[%clk 0:01:39]} 42. bxc6 {[%clk 0:00:23]}  bxc6 {[%clk 0:01:40]} 43. Rb6 {[%clk 0:00:23]}  Rd3+ {[%clk 0:01:38]} 44. Kf2 {[%clk 0:00:22]}  Kh5 {[%clk 0:01:38]} 45. Rxc6 {[%clk 0:00:21]}  Kg4 {[%clk 0:01:38]} 46. Rxh6 {[%clk 0:00:20]}  Rxg3 {[%clk 0:01:37]} 47. c6 {[%clk 0:00:20]}  Rc3 {[%clk 0:01:37]} 48. Ke2 {[%clk 0:00:21]}  f4 {[%clk 0:01:37]} 49. Kd2 {[%clk 0:00:21]}  Rc5 {[%clk 0:01:38]} 50. Kd3 {[%clk 0:00:21]}  Kg3 {[%clk 0:01:38]} 51. Kd4 {[%clk 0:00:22]}  Rc1 {[%clk 0:01:38]} 52. Kd5 {[%clk 0:00:22]}  g4 {[%clk 0:01:38]} 53. Rh8 {[%clk 0:00:15]}  f3 {[%clk 0:01:38]} 54. Ra8 {[%clk 0:00:15]}  f2 {[%clk 0:01:37]} 55. Ra3+ {[%clk 0:00:15]}  Kg2 {[%clk 0:01:37]} 56. Ra2 {[%clk 0:00:16]}  g3 {[%clk 0:01:37]} 57. Kd6 {[%clk 0:00:14]}  Kg1 {[%clk 0:01:37]} 58. Ra3 {[%clk 0:00:14]}  g2 {[%clk 0:01:37]} 59. Ra2 {[%clk 0:00:13]}  f1=Q {[%clk 0:01:37]} 60. Kc7 {[%clk 0:00:13]}  Qc4 {[%clk 0:01:34]} 61. Ra7 {[%clk 0:00:12]}  Qxc6+ {[%clk 0:01:34]} 62. Kd8 {[%clk 0:00:12]}  Re1 {[%clk 0:01:32]} 63. Rd7 {[%clk 0:00:11]}  Qxd7+ {[%clk 0:01:26]} 64. Kxd7 {[%clk 0:00:08]}  Kf1 {[%clk 0:01:27]} 0-1


[Site "https://www.chess.com"]